[Event "SWE-ch Masters 2019"]
[Site "Eskilstuna"]
[Date "2019.07.13"]
[Round "8.10"]
[White "Sivhed, Johan"]
[Black "Cramling Bellon, Anna"]
[Result "1/2-1/2"]
[ECO "B33"]
[WhiteElo "2023"]
[BlackElo "2030"]
[Annotator "NA"]
[PlyCount "126"]
[EventDate "2019.07.06"]
[EventType "swiss"]
[EventCountry "SWE"]
[SourceTitle "playchess.com"]
[Source "ChessBase"]
[SourceQuality "1"]
[TimeControl "40/5400+30:1800+30"]

1. e4 {[%emt 0:00:25]} c5 {[%emt 0:00:00]} 2. Nf3 {[%emt 0:00:04]} Nc6 {[%emt 0:00:00]} 3. d4 {[%emt 0:00:05]} cxd4 {[%emt 0:00:00]} 4. Nxd4 {[%emt 0:00:05]} Nf6 {[%emt 0:00:00]} 5. Nc3 {[%emt 0:00:07]} e6 {[%emt 0:00:00]} 6. Ndb5 {[%emt 0:00:10]} d6 {[%emt 0:00:06]} 7. Bf4 {[%emt 0:00:06]} e5 {[%emt 0:00:03]} 8. Bg5 {[%emt 0:00:04]} a6 {[%emt 0:00:05]} 9. Na3 {[%emt 0:00:04]} b5 {[%emt 0:00:08]} 10. Bxf6 {[%emt 0:00:14]} gxf6 {[%emt 0:00:04]} 11. Nd5 {[%emt 0:00:06]} f5 {[%emt 0:00:08]} 12. c3 {[%emt 0:00:11]} Bg7 {[%emt 0:00:17]} 13. Bd3 {[%emt 0:00:16]} Be6 {[%emt 0:00:20]} 14. Qh5 {[%emt 0:00:15]} f4 {[%emt 0:07:37]} 15. O-O {[%emt 0:04:44]} O-O {[%emt 0:03:57]} 16. Rfd1 {[%emt 0:00:19]} Ne7 {[%emt 0:10:23]} 17. Nxe7+ {[%emt 0:02:59]} Qxe7 {[%emt 0:00:50]} 18. Nc2 {[%emt 0:00:44]} Qd7 {[%emt 0:03:45]} 19. h3 {[%emt 0:03:14]} Rad8 {[%emt 0:33:21]} 20. a4 {[%emt 0:06:49]} bxa4 {[%emt 0:02:49]} 21. Na3 {[%emt 0:25:18]} Qc8 {[%emt 0:19:32]} 22. Qe2 {[%emt 0:04:24]} d5 {[%emt 0:04:40]} 23. Bxa6 {[%emt 0:13:40]} Qa8 {[%emt 0:00:01]} 24. Bd3 {[%emt 0:00:48]} f5 {[%emt 0:05:50]} 25. exd5 {[%emt 0:01:41]} Bxd5 {[%emt 0:00:31]} 26. Bc4 {[%emt 0:00:38]} Kh8 {[%emt 0:00:01]} 27. Bxd5 {[%emt 0:00:39]} Rxd5 {[%emt 0:00:01]} 28. Rxd5 {[%emt 0:01:46]} Qxd5 {[%emt 0:00:02]} 29. Rd1 {[%emt 0:01:16]} Qc6 {[%emt 0:05:24]} 30. Qc4 {[%emt 0:08:20]} Qg6 {[%emt 0:00:09]} 31. Kh1 {[%emt 0:13:02]} f3 {[%emt 0:01:50]} 32. g3 {[%emt 0:07:24]} f4 {[%emt 0:00:17]} 33. Rg1 {[%emt 0:00:57]} Qh5 {[%emt 0:02:22]} 34. Kh2 {[%emt 0:02:17]} Bh6 {[%emt 0:01:27]} 35. Qc5 {[%emt 0:01:20]} fxg3+ {[%emt 0:00:39]} 36. Rxg3 {[%emt 0:00:35]} Qf5 {[%emt 0:00:34]} 37. Nc4 {[%emt 0:02:38]} Bf4 {[%emt 0:00:18]} 38. Ne3 {[%emt 0:00:19]} Bxg3+ {[%emt 0:00:29]} 39. fxg3 {[%emt 0:00:07]} Qf6 {[%emt 0:00:20]} 40. Qd5 {[%emt 0:01:08]} f2 {[%emt 0:00:25]} 41. Nf1 {[%emt 0:01:18]} Rd8 {[%emt 0:07:38]} 42. Qe4 {[%emt 0:00:35]} Rd1 {[%emt 0:02:36]} 43. Kg2 {[%emt 0:00:27]} Qd6 {[%emt 0:06:37]} 44. c4 {[%emt 0:01:28]} Qd4 {[%emt 0:07:29]} 45. Qa8+ {[%emt 0:00:17]} Kg7 {[%emt 0:00:22]} 46. Qb7+ {[%emt 0:00:27]} Qd7 {[%emt 0:01:14]} 47. Qe4 {[%emt 0:00:27]} Re1 {[%emt 0:02:50]} 48. Qf3 {[%emt 0:05:29]} Qf7 {[%emt 0:00:53]} 49. Qg4+ {[%emt 0:00:47]} Kh8 {[%emt 0:04:41]} 50. Qc8+ {[%emt 0:00:20]} Kg7 {[%emt 0:01:03]} 51. Qg4+ {[%emt 0:00:10]} Kh8 {[%emt 0:00:11]} 52. Qc8+ {[%emt 0:00:06]} Qg8 {[%emt 0:00:20]} 53. Qf5 {[%emt 0:00:43]} Qd8 {[%emt 0:01:07]} 54. Kxf2 {[%emt 0:03:07]} Rd1 {[%emt 0:00:10]} 55. Qxe5+ {[%emt 0:00:15]} Kg8 {[%emt 0:00:01]} 56. Qe6+ {[%emt 0:00:48]} Kg7 {[%emt 0:00:14]} 57. Kg2 {[%emt 0:03:30]} Qa8+ {[%emt 0:00:48]} 58. Kg1 {[%emt 0:01:43]} Qa7+ {[%emt 0:00:22]} 59. Kg2 {[%emt 0:00:30]} Qb7+ {[%emt 0:00:06]} 60. Kg1 {[%emt 0:00:21]} Qf3 {[%emt 0:01:56]} 61. Qe7+ {[%emt 0:00:51]} Kg8 {[%emt 0:00:26]} 62. Qe8+ {[%emt 0:03:10]} Kg7 {[%emt 0:00:01]} 63. Qe7+ {[%emt 0:00:12]} Kg8 {[%emt 0:00:58]} 1/2-1/2

[Event "SWE-ch Masters 2019"]
[Site "Eskilstuna"]
[Date "2019.07.14"]
[Round "9.1"]
[White "Tiger-Norqvist, Axel"]
[Black "Zadruzny, Nicolaj"]
[Result "1/2-1/2"]
[ECO "C45"]
[WhiteElo "2222"]
[BlackElo "2280"]
[Annotator "NA"]
[PlyCount "186"]
[EventDate "2019.07.06"]
[EventType "swiss"]
[EventCountry "SWE"]
[SourceTitle "playchess.com"]
[Source "ChessBase"]
[SourceQuality "1"]
[TimeControl "40/5400+30:1800+30"]

1. e4 {[%emt 0:00:00]} e5 {[%emt 0:00:46]} 2. Nf3 {[%emt 0:00:00]} Nc6 {[%emt 0:00:03]} 3. d4 {[%emt 0:00:00]} exd4 {[%emt 0:00:17]} 4. Nxd4 {[%emt 0:00:00]} Nf6 {[%emt 0:00:05]} 5. Nxc6 {[%emt 0:00:00]} bxc6 {[%emt 0:00:06]} 6. e5 {[%emt 0:00:06]} Qe7 {[%emt 0:00:11]} 7. Qe2 {[%emt 0:00:07]} Nd5 {[%emt 0:00:07]} 8. c4 {[%emt 0:00:11]} Nb6 {[%emt 0:00:07]} 9. Nc3 {[%emt 0:00:10]} Qe6 {[%emt 0:00:11]} 10. Qe4 {[%emt 0:00:13]} g6 {[%emt 0:16:08]} 11. Bd3 {[%emt 0:01:08]} Bg7 {[%emt 0:00:22]} 12. f4 {[%emt 0:00:11]} O-O $11 {[%emt 0:02:38]} 13. O-O {[%emt 0:00:53]} f5 {[%emt 0:04:55]} 14. Qe2 {[%emt 0:07:12]} Ba6 {[%emt 0:12:11]} 15. c5 {[%emt 0:13:03]} Bxd3 {[%emt 0:00:06]} 16. Qxd3 {[%emt 0:00:05]} Nd5 {[%emt 0:00:16]} 17. Nxd5 {[%emt 0:00:34]} Qxd5 {[%emt 0:05:44]} 18. Qxd5+ {[%emt 0:00:45]} cxd5 {[%emt 0:00:07]} 19. Bd2 {[%emt 0:14:40]} Rfb8 {[%emt 0:07:10]} 20. Ba5 {[%emt 0:03:56]} c6 {[%emt 0:04:44]} 21. b4 {[%emt 0:00:19]} Bf8 {[%emt 0:01:57]} 22. a4 {[%emt 0:01:41]} Be7 {[%emt 0:03:21]} 23. Rfb1 {[%emt 0:01:48]} Rb7 {[%emt 0:02:35]} 24. Rd1 {[%emt 0:02:32]} Kf7 {[%emt 0:03:49]} 25. Rd4 {[%emt 0:01:56]} h6 {[%emt 0:05:20]} 26. Rf1 {[%emt 0:06:36]} Ke6 {[%emt 0:00:24]} 27. Kf2 {[%emt 0:01:30]} Rg8 {[%emt 0:03:23]} 28. Ke2 {[%emt 0:01:35]} g5 {[%emt 0:03:35]} 29. g3 {[%emt 0:00:18]} Rg7 {[%emt 0:04:50]} 30. Kd3 {[%emt 0:02:04]} Rf7 {[%emt 0:04:04]} 31. Kc3 {[%emt 0:03:30]} a6 {[%emt 0:01:26]} 32. Bb6 {[%emt 0:02:15]} gxf4 {[%emt 0:01:54]} 33. Rdxf4 {[%emt 0:01:20]} Bg5 {[%emt 0:00:29]} 34. R4f3 {[%emt 0:00:32]} h5 {[%emt 0:00:33]} 35. b5 {[%emt 0:07:02]} cxb5 {[%emt 0:00:38]} 36. axb5 {[%emt 0:00:05]} axb5 {[%emt 0:00:06]} 37. Ra1 {[%emt 0:02:48]} d6 {[%emt 0:03:35]} 38. Ra6 {[%emt 0:02:15]} Kxe5 {[%emt 0:00:55]} 39. cxd6 {[%emt 0:00:06]} Ke4 {[%emt 0:08:09]} 40. Rf1 {[%emt 0:01:08]} Bf6+ {[%emt 0:02:07]} 41. Kb4 {[%emt 0:32:57]} Rbd7 {[%emt 0:10:36]} 42. Ra2 {[%emt 0:00:00]} d4 {[%emt 0:00:47]} 43. Rf4+ {[%emt 0:00:00]} Kd5 {[%emt 0:05:03]} 44. Rxf5+ {[%emt 0:00:00]} Be5 {[%emt 0:02:39]} 45. Rxh5 {[%emt 0:00:00]} Rxd6 {[%emt 0:09:25]} 46. Bc5 {[%emt 0:00:00]} Re6 {[%emt 0:00:31]} 47. Rd2 {[%emt 0:00:00]} Kc6 {[%emt 0:02:06]} 48. Bxd4 {[%emt 0:00:00]} Bd6+ {[%emt 0:00:04]} 49. Kb3 {[%emt 0:00:00]} Rf3+ {[%emt 0:00:06]} 50. Ka2 {[%emt 0:00:00]} Re4 {[%emt 0:00:26]} 51. Rh6 {[%emt 0:01:27]} Kc7 {[%emt 0:00:12]} 52. Bb6+ {[%emt 0:03:04]} Kxb6 {[%emt 0:00:05]} 53. Rhxd6+ {[%emt 0:00:04]} Kc5 {[%emt 0:00:39]} 54. Rd8 {[%emt 0:00:32]} Ree3 {[%emt 0:02:43]} 55. Rc8+ {[%emt 0:02:27]} Kb6 {[%emt 0:00:21]} 56. Kb2 {[%emt 0:03:50]} Rb3+ {[%emt 0:00:35]} 57. Kc2 {[%emt 0:00:19]} Ra3 {[%emt 0:00:09]} 58. Rb8+ {[%emt 0:02:16]} Kc5 {[%emt 0:00:39]} 59. Rc8+ {[%emt 0:01:59]} Kb6 {[%emt 0:00:14]} 60. Kb2 {[%emt 0:03:14]} Rab3+ {[%emt 0:00:33]} 61. Kc1 {[%emt 0:01:01]} Ra3 {[%emt 0:01:00]} 62. Re2 {[%emt 0:02:44]} Rab3 {[%emt 0:01:44]} 63. Rcc2 {[%emt 0:00:15]} Rbd3 {[%emt 0:00:37]} 64. Rcd2 {[%emt 0:01:50]} Rc3+ {[%emt 0:00:04]} 65. Kd1 {[%emt 0:00:51]} Ra3 {[%emt 0:01:08]} 66. Ke1 {[%emt 0:01:18]} b4 {[%emt 0:00:30]} 67. Rg2 {[%emt 0:02:32]} Rae3+ {[%emt 0:00:30]} 68. Kd1 {[%emt 0:00:22]} Kc5 {[%emt 0:00:34]} 69. g4 {[%emt 0:01:10]} Ra3 {[%emt 0:00:38]} 70. g5 {[%emt 0:00:51]} Rfe3 {[%emt 0:00:20]} 71. Rc2+ {[%emt 0:00:54]} Kd5 {[%emt 0:00:20]} 72. g6 {[%emt 0:01:35]} Ra8 {[%emt 0:00:31]} 73. Kd2 {[%emt 0:00:36]} Rh3 {[%emt 0:00:09]} 74. Kc1 {[%emt 0:01:25]} Rg8 {[%emt 0:00:21]} 75. Rg5+ {[%emt 0:00:55]} Ke6 {[%emt 0:00:56]} 76. Rg4 {[%emt 0:00:35]} Kf6 {[%emt 0:00:34]} 77. Rf2+ {[%emt 0:00:05]} Kg7 {[%emt 0:00:19]} 78. Rf7+ {[%emt 0:00:14]} Kh8 {[%emt 0:00:09]} 79. Rf2 {[%emt 0:00:58]} b3 {[%emt 0:00:39]} 80. Kb2 {[%emt 0:00:22]} Kg7 {[%emt 0:00:27]} 81. Rgg2 {[%emt 0:00:42]} Kh6 {[%emt 0:00:33]} 82. Rf6 {[%emt 0:00:16]} Rh5 {[%emt 0:00:47]} 83. g7+ {[%emt 0:01:57]} Kh7 {[%emt 0:00:12]} 84. Rf7 {[%emt 0:00:03]} Rh6 {[%emt 0:00:29]} 85. Kxb3 {[%emt 0:00:46]} Rg6 {[%emt 0:00:13]} 86. Rg3 {[%emt 0:00:38]} Rxg3+ {[%emt 0:00:49]} 87. hxg3 {[%emt 0:00:05]} Rxg7 {[%emt 0:00:03]} 88. Rf3 {[%emt 0:00:53]} Rc7 {[%emt 0:00:08]} 89. Rc3 {[%emt 0:00:25]} Rxc3+ {[%emt 0:00:14]} 90. Kxc3 {[%emt 0:00:04]} Kg6 {[%emt 0:00:05]} 91. Kd4 {[%emt 0:00:06]} Kg5 {[%emt 0:00:04]} 92. Ke3 {[%emt 0:00:25]} Kg4 {[%emt 0:00:05]} 93. Ke4 {[%emt 0:00:11]} Kxg3 {[%emt 0:00:05]} 1/2-1/2

[Event "SWE-ch Masters 2019"]
[Site "Eskilstuna"]
[Date "2019.07.14"]
[Round "9.2"]
[White "Eriksson, Jorgen"]
[Black "Nikolic, Vladan"]
[Result "0-1"]
[ECO "E05"]
[WhiteElo "2211"]
[BlackElo "2153"]
[Annotator "NA"]
[PlyCount "98"]
[EventDate "2019.07.06"]
[EventType "swiss"]
[EventCountry "SWE"]
[SourceTitle "playchess.com"]
[Source "ChessBase"]
[SourceQuality "1"]
[TimeControl "40/5400+30:1800+30"]

1. Nf3 {[%emt 0:00:00]} Nf6 {[%emt 0:00:00]} 2. g3 {[%emt 0:00:00]} d5 {[%emt 0:00:22]} 3. c4 {[%emt 0:00:33]} e6 {[%emt 0:00:16]} 4. Bg2 {[%emt 0:00:41]} Be7 {[%emt 0:00:08]} 5. O-O {[%emt 0:01:29]} O-O {[%emt 0:00:22]} 6. d4 {[%emt 0:00:39]} dxc4 {[%emt 0:00:29]} 7. Ne5 {[%emt 0:02:03]} Nc6 {[%emt 0:00:41]} 8. Nxc6 {[%emt 0:01:01]} bxc6 {[%emt 0:00:08]} 9. Na3 {[%emt 0:17:25]} Bxa3 {[%emt 0:09:14]} 10. bxa3 {[%emt 0:00:14]} Ba6 {[%emt 0:00:16]} 11. Re1 {[%emt 0:02:06]} Rb8 {[%emt 0:11:07]} 12. e4 {[%emt 0:06:01]} Qe7 {[%emt 0:08:36]} 13. Qa4 {[%emt 0:02:56]} Bb5 {[%emt 0:09:43]} 14. Qxa7 {[%emt 0:12:04]} Ra8 {[%emt 0:01:59]} 15. Qc5 {[%emt 0:00:17]} Qxc5 {[%emt 0:00:11]} 16. dxc5 {[%emt 0:00:07]} Nd7 {[%emt 0:00:17]} 17. Bf4 {[%emt 0:16:46]} Rfc8 {[%emt 0:05:22]} 18. Rec1 {[%emt 0:06:20]} Nxc5 {[%emt 0:02:10]} 19. Be3 {[%emt 0:08:15]} Nd3 {[%emt 0:00:55]} 20. Rc3 {[%emt 0:00:26]} Ra4 {[%emt 0:02:29]} 21. Bf1 {[%emt 0:13:26]} Rca8 {[%emt 0:01:39]} 22. Bc1 {[%emt 0:00:41]} Nxc1 {[%emt 0:08:51]} 23. Raxc1 {[%emt 0:00:24]} Rxa3 {[%emt 0:00:16]} 24. Bxc4 {[%emt 0:00:21]} Rxc3 {[%emt 0:00:24]} 25. Rxc3 {[%emt 0:00:07]} Bxc4 {[%emt 0:00:13]} 26. Rxc4 {[%emt 0:00:08]} Rxa2 {[%emt 0:00:12]} 27. Rxc6 {[%emt 0:00:34]} Ra7 {[%emt 0:00:10]} 28. f4 {[%emt 0:00:45]} Kf8 {[%emt 0:02:18]} 29. Kf2 {[%emt 0:00:22]} Ke7 {[%emt 0:00:27]} 30. Ke3 {[%emt 0:00:19]} Kd7 {[%emt 0:01:30]} 31. Rc3 {[%emt 0:00:53]} f6 {[%emt 0:01:43]} 32. Rd3+ {[%emt 0:01:09]} Kc8 {[%emt 0:02:17]} 33. Rc3 {[%emt 0:00:12]} Ra5 {[%emt 0:00:32]} 34. g4 {[%emt 0:01:53]} Ra2 {[%emt 0:01:37]} 35. h3 {[%emt 0:00:26]} Rh2 {[%emt 0:02:26]} 36. Kd4 {[%emt 0:00:21]} Kd7 {[%emt 0:02:52]} 37. e5 {[%emt 0:02:45]} Rd2+ {[%emt 0:02:12]} 38. Ke3 {[%emt 0:00:18]} Rd5 {[%emt 0:00:12]} 39. exf6 {[%emt 0:02:57]} gxf6 {[%emt 0:00:28]} 40. Ke4 {[%emt 0:01:37]} Kd6 {[%emt 0:04:01]} 41. f5 {[%emt 0:18:31]} exf5+ {[%emt 0:06:39]} 42. gxf5 {[%emt 0:00:15]} c5 {[%emt 0:00:32]} 43. Rc4 {[%emt 0:00:53]} Re5+ {[%emt 0:00:26]} 44. Kf4 {[%emt 0:00:06]} Kd5 {[%emt 0:07:35]} 45. Ra4 {[%emt 0:00:21]} c4 {[%emt 0:00:47]} 46. Ra7 {[%emt 0:09:52]} c3 {[%emt 0:05:27]} 47. Rxh7 {[%emt 0:00:30]} c2 {[%emt 0:01:24]} 48. Rc7 {[%emt 0:02:33]} Re4+ {[%emt 0:00:14]} 49. Kf3 {[%emt 0:00:06]} Rc4 {[%emt 0:00:08]} 0-1

[Event "SWE-ch Masters 2019"]
[Site "Eskilstuna"]
[Date "2019.07.14"]
[Round "9.3"]
[White "Crevatin, Leo"]
[Black "Landgren, Andreas"]
[Result "0-1"]
[ECO "A65"]
[WhiteElo "2146"]
[BlackElo "2246"]
[Annotator "NA"]
[PlyCount "184"]
[EventDate "2019.07.06"]
[EventType "swiss"]
[EventCountry "SWE"]
[SourceTitle "playchess.com"]
[Source "ChessBase"]
[SourceQuality "1"]
[TimeControl "40/5400+30:1800+30"]

1. d4 {[%emt 0:00:10]} Nf6 {[%emt 0:00:00]} 2. c4 {[%emt 0:00:32]} g6 {[%emt 0:00:00]} 3. f3 {[%emt 0:00:05]} Bg7 {[%emt 0:00:15]} 4. e4 {[%emt 0:00:04]} d6 {[%emt 0:00:11]} 5. Nc3 {[%emt 0:00:05]} O-O {[%emt 0:00:16]} 6. Nge2 {[%emt 0:00:03]} c5 {[%emt 0:01:50]} 7. d5 {[%emt 0:00:11]} a6 {[%emt 0:02:36]} 8. a4 {[%emt 0:02:36]} e6 {[%emt 0:00:49]} 9. Ng3 {[%emt 0:00:06]} exd5 {[%emt 0:00:24]} 10. cxd5 {[%emt 0:00:02]} Nbd7 {[%emt 0:00:47]} 11. Be2 {[%emt 0:00:40]} Ne8 {[%emt 0:00:58]} 12. Be3 {[%emt 0:06:13]} Rb8 {[%emt 0:01:52]} 13. O-O {[%emt 0:05:06]} Nc7 {[%emt 0:03:48] A65: Modern Benoni: 6 e4} 14. a5 {[%emt 0:02:54]} (14. f4 b5 15. e5 bxa4 16. Nge4 dxe5 17. f5 gxf5 18. Rxf5 Nb6 19. Rg5 f5 20. Qe1 fxe4 21. Rxg7+ Kxg7 {½-½ (40) Vachier Lagrave,M (2758)-Radjabov,T (2738) Skopje 2015}) 14... b5 {[%emt 0:09:48]} 15. axb6 {[%emt 0:00:22]} Nb5 {[%emt 0:00:35]} 16. Nxb5 {[%emt 0:05:40]} axb5 {[%emt 0:00:07]} 17. Bxb5 $146 {[%emt 0:06:25]} ({Predecessor:} 17. Qd2 Nxb6 18. f4 Nc4 19. Bxc4 bxc4 {½-½ (31) Tang,A (2441)-Song,M (2373) Rockville 2016}) 17... Qxb6 {[%emt 0:00:34]} 18. Be2 {[%emt 0:02:19]} Qxb2 {[%emt 0:03:44]} 19. Rb1 {[%emt 0:03:36]} Qa3 {[%emt 0:00:52]} 20. Qd2 {[%emt 0:01:29]} Ba6 {[%emt 0:01:15]} 21. Bxa6 {[%emt 0:00:57]} Qxa6 {[%emt 0:00:18]} 22. f4 {[%emt 0:00:57]} Rfe8 {[%emt 0:05:59]} 23. Kh1 {[%emt 0:13:02]} Qa4 {[%emt 0:05:49]} 24. h3 {[%emt 0:07:42]} h5 {[%emt 0:03:37]} 25. e5 {[%emt 0:10:18]} Rxb1 $19 {[%emt 0:06:30]} ({Much less strong is} 25... dxe5 26. Rxb8 Rxb8 27. f5 $17) 26. Rxb1 {[%emt 0:00:07]} dxe5 {[%emt 0:00:06]} 27. fxe5 {[%emt 0:00:11]} Bxe5 {[%emt 0:01:15]} 28. Ne2 {[%emt 0:01:46]} Qe4 {[%emt 0:15:41]} 29. Re1 {[%emt 0:02:20]} Rb8 {[%emt 0:03:39]} 30. Nf4 {[%emt 0:05:46]} c4 {[%emt 0:05:43]} 31. Ba7 {[%emt 0:03:23]} Qxf4 {[%emt 0:01:15]} 32. Qxf4 {[%emt 0:00:05]} Bxf4 {[%emt 0:00:07]} 33. Bxb8 {[%emt 0:00:02]} Bxb8 {[%emt 0:05:05]} 34. Re8+ {[%emt 0:02:38]} Kg7 {[%emt 0:00:11]} 35. Rc8 {[%emt 0:00:18]} Kf6 {[%emt 0:00:30]} 36. Rxc4 {[%emt 0:00:13]} Ke5 {[%emt 0:00:37]} 37. Rc8 {[%emt 0:02:26]} Kxd5 {[%emt 0:00:32]} 38. g4 {[%emt 0:02:24]} h4 {[%emt 0:05:27]} 39. Rd8 {[%emt 0:00:28]} Ke6 {[%emt 0:00:21]} 40. Re8+ {[%emt 0:00:52]} Kd6 {[%emt 0:03:15]} 41. Rh8 {[%emt 0:32:25]} g5 {[%emt 0:30:16]} 42. Kg2 {[%emt 0:00:58]} Ke6 {[%emt 0:04:02]} 43. Re8+ {[%emt 0:01:20]} Kf6 {[%emt 0:01:33]} 44. Kf3 {[%emt 0:01:58]} Bg3 {[%emt 0:05:23]} 45. Ra8 {[%emt 0:03:35]} Kg6 {[%emt 0:03:14]} 46. Ra6+ {[%emt 0:01:22]} f6 {[%emt 0:00:23]} 47. Ra8 {[%emt 0:03:44]} Nc5 {[%emt 0:00:47]} 48. Rg8+ {[%emt 0:00:27]} Kf7 {[%emt 0:00:21]} 49. Ra8 {[%emt 0:01:07]} Be5 {[%emt 0:00:00]} 50. Ra3 {[%emt 0:00:00]} Kg6 {[%emt 0:00:00]} 51. Ra5 {[%emt 0:00:00]} Ne6 {[%emt 0:00:00]} 52. Ke4 {[%emt 0:00:00]} Bg3 {[%emt 0:00:00]} 53. Ra1 {[%emt 0:00:00]} Nf4 {[%emt 0:00:00]} 54. Rh1 {[%emt 0:00:00]} Kf7 {[%emt 0:00:00]} 55. Kf5 {[%emt 0:00:00]} Ke7 {[%emt 0:00:00]} 56. Rb1 {[%emt 0:00:00]} Nxh3 {[%emt 0:00:00]} 57. Rb7+ {[%emt 0:00:00]} Kd6 {[%emt 0:00:00]} 58. Kxf6 {[%emt 0:00:00]} Bf4 {[%emt 0:00:00]} 59. Kf5 {[%emt 0:00:00]} Ng1 {[%emt 0:00:00]} 60. Rb1 {[%emt 0:00:00]} Ne2 {[%emt 0:00:00]} 61. Rd1+ {[%emt 0:00:00]} Kc5 {[%emt 0:00:00]} 62. Rd8 {[%emt 0:00:00]} h3 {[%emt 0:00:00]} 63. Rh8 {[%emt 0:00:00]} h2 {[%emt 0:00:00]} 64. Kg6 {[%emt 0:00:00]} Kd5 {[%emt 0:00:00]} 65. Rxh2 {[%emt 0:00:00]} Bxh2 {[%emt 0:00:00]} 66. Kxg5 {[%emt 0:00:00]} Ke5 {[%emt 0:00:00]} 67. Kh4 {[%emt 0:00:00]} Kf6 {[%emt 0:00:00]} 68. g5+ {[%emt 0:00:00]} Kg6 {[%emt 0:00:00]} 69. Kg4 {[%emt 0:00:00]} Nd4 {[%emt 0:00:00]} 70. Kh3 {[%emt 0:00:00]} Bf4 {[%emt 0:00:00]} 71. Kg4 {[%emt 0:00:00]} Bxg5 {[%emt 0:00:00]} 72. Kh3 {[%emt 0:00:00]} Kf5 {[%emt 0:00:00]} 73. Kg3 {[%emt 0:00:00]} Ke4 {[%emt 0:00:00]} 74. Kg4 {[%emt 0:00:00]} Bf4 {[%emt 0:00:00]} 75. Kh3 {[%emt 0:00:00]} Kf3 {[%emt 0:00:00]} 76. Kh4 {[%emt 0:00:00]} Ne6 {[%emt 0:04:23]} 77. Kh3 {[%emt 0:00:00]} Be5 {[%emt 0:00:18]} 78. Kh4 {[%emt 0:00:00]} Bg3+ {[%emt 0:00:55]} 79. Kh5 {[%emt 0:00:00]} Kf4 {[%emt 0:00:14]} 80. Kg6 {[%emt 0:00:00]} Ke5 {[%emt 0:00:16]} 81. Kf7 {[%emt 0:00:00]} Bh4 {[%emt 0:00:14]} 82. Kg6 {[%emt 0:00:00]} Bf6 {[%emt 0:00:39]} 83. Kf7 {[%emt 0:00:00]} Nc7 {[%emt 0:00:17]} 84. Kg6 {[%emt 0:00:00]} Ke6 {[%emt 0:00:09]} 85. Kh5 {[%emt 0:00:00]} Kf5 {[%emt 0:00:06]} 86. Kh6 {[%emt 0:00:00]} Ne6 {[%emt 0:00:44]} 87. Kh5 {[%emt 0:00:00]} Be7 {[%emt 0:00:16]} 88. Kh6 {[%emt 0:00:00]} Bg5+ {[%emt 0:00:09]} 89. Kh7 {[%emt 0:00:00]} Kf6 {[%emt 0:00:14]} 90. Kh8 {[%emt 0:00:00]} Kf7 {[%emt 0:00:11]} 91. Kh7 {[%emt 0:00:00]} Nf8+ {[%emt 0:00:05]} 92. Kh8 {[%emt 0:00:00]} Bf6# {[%emt 0:00:04]} 0-1

[Event "SWE-ch Masters 2019"]
[Site "Eskilstuna"]
[Date "2019.07.14"]
[Round "9.4"]
[White "Lind, Jan-Olov"]
[Black "Engstrom, Kaj"]
[Result "1-0"]
[ECO "A05"]
[WhiteElo "2155"]
[BlackElo "2234"]
[Annotator "ChessBase"]
[PlyCount "117"]
[EventDate "2019.07.06"]
[EventType "swiss"]
[EventCountry "SWE"]
[SourceTitle "playchess.com"]
[Source "ChessBase"]
[SourceQuality "1"]
[TimeControl "40/5400+30:1800+30"]

1. e4 {[%emt 0:00:00]} c5 {[%emt 0:00:00]} 2. Nf3 {[%emt 0:00:18]} e6 {[%emt 0:00:26]} 3. d3 {[%emt 0:00:08]} b5 {[%emt 0:00:16]} 4. g3 {[%emt 0:00:17]} Bb7 {[%emt 0:00:06]} 5. Bg2 {[%emt 0:00:14]} Nf6 {[%emt 0:03:12]} 6. O-O {[%emt 0:01:40]} d5 {[%emt 0:00:28]} 7. Nbd2 {[%emt 0:03:43]} Be7 {[%emt 0:07:14]} 8. a4 {[%emt 0:04:39]} b4 {[%emt 0:10:35]} 9. Re1 {[%emt 0:09:52]} O-O {[%emt 0:05:08]} 10. exd5 {[%emt 0:06:34]} Bxd5 {[%emt 0:01:12]} 11. Qe2 {[%emt 0:02:02]} Nc6 {[%emt 0:02:35]} 12. Nc4 {[%emt 0:08:42]} Rb8 {[%emt 0:15:06]} 13. Nce5 {[%emt 0:08:08]} Bd6 {[%emt 0:07:55]} 14. Nxc6 {[%emt 0:03:11]} Bxc6 {[%emt 0:00:13]} 15. Nd2 {[%emt 0:00:40]} Bxg2 {[%emt 0:04:11]} 16. Kxg2 {[%emt 0:00:07]} Be7 {[%emt 0:04:17]} 17. Qf3 {[%emt 0:06:52]} Qd7 {[%emt 0:04:34]} 18. Nc4 {[%emt 0:05:39]} Nd5 {[%emt 0:05:19]} 19. h4 {[%emt 0:12:31]} Bf6 {[%emt 0:03:54]} 20. Bg5 {[%emt 0:08:07]} Bd4 {[%emt 0:02:14]} 21. h5 {[%emt 0:02:52]} h6 {[%emt 0:02:47]} 22. Bd2 {[%emt 0:00:50]} Qd8 {[%emt 0:02:15]} 23. a5 {[%emt 0:04:07]} Qf6 {[%emt 0:04:09]} 24. Rab1 {[%emt 0:00:32]} Rfd8 {[%emt 0:00:28]} 25. Re4 {[%emt 0:03:19]} Qxf3+ {[%emt 0:02:44]} 26. Kxf3 {[%emt 0:00:07]} Rd7 {[%emt 0:00:21]} 27. Rg1 {[%emt 0:02:19]} b3 {[%emt 0:02:29]} 28. c3 {[%emt 0:00:20]} Bf6 {[%emt 0:00:04]} 29. Ke2 {[%emt 0:00:59]} Rbd8 {[%emt 0:00:10]} 30. Rd1 {[%emt 0:00:46]} Ne7 {[%emt 0:00:27]} 31. Be3 {[%emt 0:00:58]} Rd5 {[%emt 0:01:42]} 32. g4 {[%emt 0:00:10]} Bg5 {[%emt 0:03:41]} 33. f4 {[%emt 0:01:36]} Bh4 {[%emt 0:00:30]} 34. Rh1 {[%emt 0:00:21]} g5 {[%emt 0:00:10]} 35. f5 {[%emt 0:01:17]} Rxd3 {[%emt 0:01:05]} 36. fxe6 {[%emt 0:00:13]} f5 {[%emt 0:00:28]} 37. gxf5 {[%emt 0:01:13]} Nxf5 {[%emt 0:00:06]} 38. Rg1 {[%emt 0:00:16]} Nxe3 {[%emt 0:01:06]} 39. e7 {[%emt 0:00:58]} Nxc4 {[%emt 0:00:16]} 40. exd8=Q+ {[%emt 0:00:46]} Rxd8 {[%emt 0:00:40]} 41. Rxc4 {[%emt 0:30:34]} Re8+ {[%emt 0:30:13]} 42. Kf3 {[%emt 0:00:00]} Rf8+ {[%emt 0:00:00]} 43. Kg4 {[%emt 0:00:00]} Rf2 {[%emt 0:00:00]} 44. Rb1 {[%emt 0:00:00]} Kf7 {[%emt 0:00:00]} 45. Rxc5 {[%emt 0:00:00]} Rf4+ {[%emt 0:00:00]} 46. Kh3 {[%emt 0:00:00]} Ke6 {[%emt 0:00:00]} 47. Rb5 {[%emt 0:00:00]} Re4 {[%emt 0:00:00]} 48. Rxb3 {[%emt 0:00:00]} Re3+ {[%emt 0:00:00]} 49. Kg2 {[%emt 0:00:00]} g4 {[%emt 0:00:00]} 50. Rb4 {[%emt 0:00:00]} Rg3+ {[%emt 0:00:00]} 51. Kf1 {[%emt 0:00:00]} Kf5 {[%emt 0:00:00]} 52. Rd1 {[%emt 0:00:00]} Rf3+ {[%emt 0:00:00]} 53. Ke2 {[%emt 0:00:00]} Rf2+ {[%emt 0:00:00]} 54. Ke3 {[%emt 0:00:00]} Rf3+ {[%emt 0:00:00]} 55. Ke2 {[%emt 0:00:00]} Rf2+ {[%emt 0:00:00]} 56. Kd3 {[%emt 0:00:00]} Bg5 {[%emt 0:00:00]} 57. Rg1 {[%emt 0:00:45]} Rd2+ {[%emt 0:00:00]} 58. Kc4 {[%emt 0:00:15]} Bh4 {[%emt 0:00:00]} 59. Kb3 {[%emt 0:00:46]} 1-0